[Event "Titled Tuesday Blitz February 07 Late 2023"]
[White "Maksimovic, Bojan"]
[Black "Pichot, Alan"]
[WhiteFideId "14408120"]
[BlackFideId "110973"]
[WhiteElo "2486"]
[BlackElo "2638"]
[Result "1-0"]
[Round "06"]
[TimeControl "180+2"]
[Date "2023.02.07"]
[WhiteClock "0:00:09"]
[BlackClock "0:00:47"]

1. e4 {[%clk 0:03:00]}  e5 {[%clk 0:02:52]} 2. Nf3 {[%clk 0:03:01]}  Nc6 {[%clk 0:02:50]} 3. Bb5 {[%clk 0:03:00]}  a6 {[%clk 0:02:51]} 4. Ba4 {[%clk 0:03:01]}  Nf6 {[%clk 0:02:51]} 5. O-O {[%clk 0:03:00]}  Be7 {[%clk 0:02:51]} 6. Re1 {[%clk 0:03:00]}  b5 {[%clk 0:02:52]} 7. Bb3 {[%clk 0:03:01]}  O-O {[%clk 0:02:52]} 8. h3 {[%clk 0:03:01]}  d6 {[%clk 0:02:53]} 9. c3 {[%clk 0:03:00]}  Bb7 {[%clk 0:02:53]} 10. d4 {[%clk 0:03:00]}  Re8 {[%clk 0:02:53]} 11. Ng5 {[%clk 0:03:00]}  Rf8 {[%clk 0:02:53]} 12. Nf3 {[%clk 0:03:00]}  Re8 {[%clk 0:02:54]} 13. Nbd2 {[%clk 0:02:58]}  h6 {[%clk 0:02:50]} 14. Nf1 {[%clk 0:02:48]}  Bf8 {[%clk 0:02:44]} 15. Ng3 {[%clk 0:02:48]}  Nb8 {[%clk 0:02:44]} 16. dxe5 {[%clk 0:02:40]}  Nfd7 {[%clk 0:02:41]} 17. exd6 {[%clk 0:02:24]}  cxd6 {[%clk 0:02:42]} 18. Bd5 {[%clk 0:02:05]}  Nc6 {[%clk 0:02:36]} 19. Nd4 {[%clk 0:01:54]}  Rc8 {[%clk 0:02:34]} 20. Nxc6 {[%clk 0:01:41]}  Bxc6 {[%clk 0:02:34]} 21. Bxc6 {[%clk 0:01:37]}  Rxc6 {[%clk 0:02:35]} 22. Be3 {[%clk 0:01:37]}  Nf6 {[%clk 0:02:34]} 23. Bd4 {[%clk 0:01:35]}  Re6 {[%clk 0:02:30]} 24. Qf3 {[%clk 0:01:35]}  Qd7 {[%clk 0:02:29]} 25. Rad1 {[%clk 0:01:33]}  Rc4 {[%clk 0:02:26]} 26. a3 {[%clk 0:01:30]}  Qe8 {[%clk 0:02:25]} 27. Re2 {[%clk 0:01:18]}  Nd7 {[%clk 0:02:24]} 28. Rde1 {[%clk 0:00:56]}  Ne5 {[%clk 0:02:23]} 29. Bxe5 {[%clk 0:00:52]}  dxe5 {[%clk 0:02:23]} 30. Nf5 {[%clk 0:00:52]}  Rc7 {[%clk 0:02:09]} 31. Rd1 {[%clk 0:00:38]}  Rd7 {[%clk 0:02:09]} 32. Red2 {[%clk 0:00:36]}  Rxd2 {[%clk 0:02:09]} 33. Rxd2 {[%clk 0:00:37]}  g6 {[%clk 0:02:04]} 34. Ne3 {[%clk 0:00:37]}  Bc5 {[%clk 0:02:05]} 35. Nd5 {[%clk 0:00:37]}  Qc6 {[%clk 0:01:58]} 36. Qe2 {[%clk 0:00:33]}  Kg7 {[%clk 0:01:58]} 37. Rd3 {[%clk 0:00:33]}  Ba7 {[%clk 0:01:57]} 38. h4 {[%clk 0:00:33]}  Qc4 {[%clk 0:01:56]} 39. h5 {[%clk 0:00:30]}  Rd6 {[%clk 0:01:47]} 40. hxg6 {[%clk 0:00:26]}  fxg6 {[%clk 0:01:31]} 41. Rd2 {[%clk 0:00:26]}  h5 {[%clk 0:01:26]} 42. g3 {[%clk 0:00:25]}  Qc8 {[%clk 0:01:20]} 43. Kg2 {[%clk 0:00:24]}  Qd8 {[%clk 0:01:19]} 44. Rd3 {[%clk 0:00:19]}  Qg5 {[%clk 0:01:18]} 45. Qd2 {[%clk 0:00:18]}  Qg4 {[%clk 0:01:16]} 46. f3 {[%clk 0:00:12]}  Qd7 {[%clk 0:01:17]} 47. Qg5 {[%clk 0:00:12]}  Bb8 {[%clk 0:00:49]} 48. Qxe5+ {[%clk 0:00:09]}  Kh6 {[%clk 0:00:49]} 49. Qf4+ {[%clk 0:00:09]}  Kg7 {[%clk 0:00:50]} 50. Qe5+ {[%clk 0:00:09]}  Kh6 {[%clk 0:00:50]} 51. Qh8+ {[%clk 0:00:09]}  Qh7 {[%clk 0:00:47]} 52. Qxb8 {[%clk 0:00:09]} 1-0


[Site "https://www.chess.com"]

[Event "Titled Tuesday Blitz February 07 Late 2023"]
[White "Kamsky, Gata"]
[Black "Gascon Del Nogal, Jose Rafael"]
[WhiteFideId "2000024"]
[BlackFideId "3902463"]
[WhiteElo "2665"]
[BlackElo "2459"]
[Result "1-0"]
[Round "06"]
[TimeControl "180+2"]
[Date "2023.02.07"]
[WhiteClock "0:01:14"]
[BlackClock "0:00:28"]

1. d4 {[%clk 0:02:58]}  Nf6 {[%clk 0:02:54]} 2. Bf4 {[%clk 0:02:56]}  g6 {[%clk 0:02:53]} 3. c3 {[%clk 0:02:55]}  Bg7 {[%clk 0:02:53]} 4. Nf3 {[%clk 0:02:56]}  O-O {[%clk 0:02:53]} 5. h3 {[%clk 0:02:56]}  d6 {[%clk 0:02:50]} 6. e3 {[%clk 0:02:56]}  Nc6 {[%clk 0:02:42]} 7. Be2 {[%clk 0:02:52]}  Nd7 {[%clk 0:02:29]} 8. g4 {[%clk 0:02:51]}  e5 {[%clk 0:02:27]} 9. Bg3 {[%clk 0:02:50]}  d5 {[%clk 0:02:09]} 10. Nbd2 {[%clk 0:02:23]}  Qe7 {[%clk 0:02:06]} 11. Qb3 {[%clk 0:02:18]}  Nb6 {[%clk 0:02:06]} 12. a4 {[%clk 0:02:11]}  a5 {[%clk 0:02:02]} 13. Qa3 {[%clk 0:02:08]}  Qxa3 {[%clk 0:01:53]} 14. Rxa3 {[%clk 0:02:08]}  Re8 {[%clk 0:01:51]} 15. Bb5 {[%clk 0:02:07]}  f6 {[%clk 0:01:36]} 16. g5 {[%clk 0:02:00]}  e4 {[%clk 0:01:29]} 17. gxf6 {[%clk 0:01:59]}  Bxf6 {[%clk 0:01:29]} 18. Ng1 {[%clk 0:01:52]}  Re7 {[%clk 0:01:13]} 19. Ne2 {[%clk 0:01:50]}  Be6 {[%clk 0:01:11]} 20. Nf4 {[%clk 0:01:42]}  Bf7 {[%clk 0:01:11]} 21. h4 {[%clk 0:01:41]}  Nd8 {[%clk 0:00:58]} 22. Nb3 {[%clk 0:01:38]}  Be8 {[%clk 0:00:43]} 23. Nc5 {[%clk 0:01:27]}  Bxb5 {[%clk 0:00:36]} 24. axb5 {[%clk 0:01:27]}  c6 {[%clk 0:00:37]} 25. bxc6 {[%clk 0:01:25]}  bxc6 {[%clk 0:00:38]} 26. Ke2 {[%clk 0:01:16]}  Nc4 {[%clk 0:00:36]} 27. Ra2 {[%clk 0:01:15]}  Nb7 {[%clk 0:00:30]} 28. Na4 {[%clk 0:01:15]}  Nbd6 {[%clk 0:00:28]} 29. b3 {[%clk 0:01:14]} 1-0


[Site "https://www.chess.com"]

[Event "Titled Tuesday Blitz February 07 Late 2023"]
[White "Adewumi, Tanitoluwa"]
[Black "Dardha, Daniel"]
[WhiteFideId "30966396"]
[BlackFideId "240990"]
[WhiteElo "2283"]
[BlackElo "2631"]
[Result "0-1"]
[Round "06"]
[TimeControl "180+2"]
[Date "2023.02.07"]
[WhiteClock "0:00:01"]
[BlackClock "0:02:13"]

1. e4 {[%clk 0:02:54]}  e5 {[%clk 0:02:58]} 2. Nf3 {[%clk 0:02:55]}  Nc6 {[%clk 0:02:58]} 3. Nc3 {[%clk 0:02:53]}  Nf6 {[%clk 0:02:54]} 4. Bb5 {[%clk 0:02:53]}  Bd6 {[%clk 0:02:52]} 5. Bxc6 {[%clk 0:02:52]}  dxc6 {[%clk 0:02:52]} 6. d3 {[%clk 0:02:52]}  h6 {[%clk 0:02:51]} 7. Rg1 {[%clk 0:02:49]}  Be6 {[%clk 0:02:49]} 8. h3 {[%clk 0:02:29]}  Qe7 {[%clk 0:02:49]} 9. Be3 {[%clk 0:02:28]}  c5 {[%clk 0:02:47]} 10. Nb5 {[%clk 0:02:23]}  Nd7 {[%clk 0:02:43]} 11. Nxd6+ {[%clk 0:02:16]}  cxd6 {[%clk 0:02:44]} 12. c4 {[%clk 0:02:02]}  f5 {[%clk 0:02:44]} 13. exf5 {[%clk 0:01:42]}  Bxf5 {[%clk 0:02:45]} 14. Qe2 {[%clk 0:01:38]}  b5 {[%clk 0:02:43]} 15. Nd2 {[%clk 0:01:35]}  O-O {[%clk 0:02:41]} 16. g4 {[%clk 0:01:21]}  Bg6 {[%clk 0:02:41]} 17. Rc1 {[%clk 0:01:01]}  bxc4 {[%clk 0:02:37]} 18. dxc4 {[%clk 0:00:54]}  e4 {[%clk 0:02:37]} 19. Rc3 {[%clk 0:00:39]}  Ne5 {[%clk 0:02:34]} 20. g5 {[%clk 0:00:30]}  h5 {[%clk 0:02:34]} 21. Kd1 {[%clk 0:00:19]}  Nd3 {[%clk 0:02:34]} 22. Kc2 {[%clk 0:00:19]}  a5 {[%clk 0:02:28]} 23. h4 {[%clk 0:00:13]}  a4 {[%clk 0:02:27]} 24. Qf1 {[%clk 0:00:04]}  Nxf2 {[%clk 0:02:21]} 25. Qg2 {[%clk 0:00:04]}  Nd3 {[%clk 0:02:19]} 26. Qg3 {[%clk 0:00:03]}  Rab8 {[%clk 0:02:17]} 27. Rb1 {[%clk 0:00:02]}  Nb4+ {[%clk 0:02:16]} 28. Kd1 {[%clk 0:00:02]}  Nxa2 {[%clk 0:02:15]} 29. Ra3 {[%clk 0:00:03]}  Nb4 {[%clk 0:02:14]} 30. Rxa4 {[%clk 0:00:01]}  Rf3 {[%clk 0:02:12]} 31. Nxf3 {[%clk 0:00:01]}  exf3 {[%clk 0:02:13]} 0-1


[Site "https://www.chess.com"]

[Event "Titled Tuesday Blitz February 07 Late 2023"]
[White "Gutenev, Alexander"]
[Black "Melkumyan, Hrant"]
[WhiteFideId "4195540"]
[BlackFideId "13302485"]
[WhiteElo "2455"]
[BlackElo "2645"]
[Result "0-1"]
[Round "06"]
[TimeControl "180+2"]
[Date "2023.02.07"]
[WhiteClock "0:00:49"]
[BlackClock "0:00:49"]

1. e4 {[%clk 0:03:00]}  c5 {[%clk 0:03:00]} 2. Nc3 {[%clk 0:02:59]}  Nc6 {[%clk 0:03:00]} 3. Bb5 {[%clk 0:02:59]}  Nd4 {[%clk 0:02:59]} 4. Nf3 {[%clk 0:02:59]}  a6 {[%clk 0:02:55]} 5. Bd3 {[%clk 0:02:58]}  Nc6 {[%clk 0:02:55]} 6. O-O {[%clk 0:02:58]}  g6 {[%clk 0:02:56]} 7. Re1 {[%clk 0:02:57]}  Bg7 {[%clk 0:02:56]} 8. b3 {[%clk 0:02:55]}  d6 {[%clk 0:02:55]} 9. Bb2 {[%clk 0:02:55]}  e5 {[%clk 0:02:56]} 10. a4 {[%clk 0:02:50]}  Nge7 {[%clk 0:02:54]} 11. Ne2 {[%clk 0:02:35]}  O-O {[%clk 0:02:53]} 12. c3 {[%clk 0:02:35]}  h6 {[%clk 0:02:44]} 13. Bc2 {[%clk 0:02:33]}  f5 {[%clk 0:02:45]} 14. d4 {[%clk 0:02:29]}  fxe4 {[%clk 0:02:43]} 15. Bxe4 {[%clk 0:02:29]}  d5 {[%clk 0:02:42]} 16. Bc2 {[%clk 0:02:22]}  e4 {[%clk 0:02:40]} 17. Nd2 {[%clk 0:01:53]}  cxd4 {[%clk 0:02:40]} 18. Nxd4 {[%clk 0:01:50]}  Nxd4 {[%clk 0:02:38]} 19. cxd4 {[%clk 0:01:50]}  Nf5 {[%clk 0:02:38]} 20. Nf1 {[%clk 0:01:50]}  Nh4 {[%clk 0:02:25]} 21. Ne3 {[%clk 0:01:50]}  Be6 {[%clk 0:02:22]} 22. Qd2 {[%clk 0:01:44]}  Qg5 {[%clk 0:02:21]} 23. Kh1 {[%clk 0:01:44]}  Rf7 {[%clk 0:02:10]} 24. Ba3 {[%clk 0:01:43]}  Rc8 {[%clk 0:01:55]} 25. Rf1 {[%clk 0:01:35]}  Nxg2 {[%clk 0:01:50]} 26. Rg1 {[%clk 0:01:33]}  Bh3 {[%clk 0:01:51]} 27. Rad1 {[%clk 0:01:19]}  Nxe3 {[%clk 0:01:25]} 28. Rxg5 {[%clk 0:01:17]}  Nxd1 {[%clk 0:01:25]} 29. Bxd1 {[%clk 0:01:02]}  hxg5 {[%clk 0:01:23]} 30. Bd6 {[%clk 0:00:56]}  Rf5 {[%clk 0:01:05]} 31. Bg3 {[%clk 0:00:54]}  Kh7 {[%clk 0:00:58]} 32. Kg1 {[%clk 0:00:54]}  g4 {[%clk 0:00:49]} 33. Be2 {[%clk 0:00:50]}  Bh6 {[%clk 0:00:49]} 34. Qd1 {[%clk 0:00:49]}  Rc1 {[%clk 0:00:49]} 0-1


[Site "https://www.chess.com"]

[Event "Titled Tuesday Blitz February 07 Late 2023"]
[White "Fiorito, Joaquin"]
[Black "Gorodetzky, David"]
[WhiteFideId "180173"]
[BlackFideId "2813416"]
[WhiteElo "2405"]
[BlackElo "2485"]
[Result "1-0"]
[Round "06"]
[TimeControl "180+2"]
[Date "2023.02.07"]
[WhiteClock "0:00:05"]
[BlackClock "0:00:03"]

1. d4 {[%clk 0:03:00]}  Nf6 {[%clk 0:02:38]} 2. Nc3 {[%clk 0:03:01]}  d5 {[%clk 0:02:36]} 3. Bf4 {[%clk 0:03:01]}  a6 {[%clk 0:02:35]} 4. e3 {[%clk 0:03:01]}  Bf5 {[%clk 0:02:33]} 5. Bd3 {[%clk 0:03:00]}  e6 {[%clk 0:02:31]} 6. f3 {[%clk 0:02:55]}  Bb4 {[%clk 0:02:26]} 7. Ne2 {[%clk 0:02:55]}  c5 {[%clk 0:02:25]} 8. a3 {[%clk 0:02:55]}  Bxc3+ {[%clk 0:02:22]} 9. Nxc3 {[%clk 0:02:55]}  Bxd3 {[%clk 0:02:21]} 10. Qxd3 {[%clk 0:02:56]}  cxd4 {[%clk 0:02:21]} 11. exd4 {[%clk 0:02:57]}  Nc6 {[%clk 0:02:21]} 12. g4 {[%clk 0:02:51]}  Qb6 {[%clk 0:02:20]} 13. O-O-O {[%clk 0:02:51]}  Rc8 {[%clk 0:02:15]} 14. h4 {[%clk 0:02:48]}  Na5 {[%clk 0:02:07]} 15. Na4 {[%clk 0:02:18]}  Qc6 {[%clk 0:01:55]} 16. Nc5 {[%clk 0:01:59]}  Nc4 {[%clk 0:01:54]} 17. h5 {[%clk 0:01:53]}  a5 {[%clk 0:01:27]} 18. g5 {[%clk 0:01:28]}  Nd7 {[%clk 0:01:26]} 19. Nxd7 {[%clk 0:01:26]}  Kxd7 {[%clk 0:01:27]} 20. Rhe1 {[%clk 0:01:22]}  Qb6 {[%clk 0:01:11]} 21. Qc3 {[%clk 0:01:06]}  Rc6 {[%clk 0:01:09]} 22. g6 {[%clk 0:00:52]}  fxg6 {[%clk 0:01:00]} 23. hxg6 {[%clk 0:00:52]}  h6 {[%clk 0:00:58]} 24. Kb1 {[%clk 0:00:44]}  Rf8 {[%clk 0:00:32]} 25. Bc1 {[%clk 0:00:28]}  Rf6 {[%clk 0:00:22]} 26. Qd3 {[%clk 0:00:28]}  a4 {[%clk 0:00:20]} 27. f4 {[%clk 0:00:26]}  Qc7 {[%clk 0:00:19]} 28. Re2 {[%clk 0:00:24]}  Rb6 {[%clk 0:00:18]} 29. Rde1 {[%clk 0:00:22]}  Qd6 {[%clk 0:00:18]} 30. Ka1 {[%clk 0:00:21]}  Qf8 {[%clk 0:00:13]} 31. Qh3 {[%clk 0:00:17]}  Rf5 {[%clk 0:00:12]} 32. Qd3 {[%clk 0:00:11]}  Qf6 {[%clk 0:00:12]} 33. b3 {[%clk 0:00:08]}  axb3 {[%clk 0:00:12]} 34. cxb3 {[%clk 0:00:08]}  Nd6 {[%clk 0:00:13]} 35. Re5 {[%clk 0:00:04]}  Qxg6 {[%clk 0:00:11]} 36. Qc3 {[%clk 0:00:04]}  Qg2 {[%clk 0:00:06]} 37. Bb2 {[%clk 0:00:02]}  Rxe5 {[%clk 0:00:06]} 38. fxe5 {[%clk 0:00:03]}  Ne4 {[%clk 0:00:06]} 39. Qa5 {[%clk 0:00:03]}  Rc6 {[%clk 0:00:05]} 40. Qb5 {[%clk 0:00:03]}  Kc7 {[%clk 0:00:05]} 41. Rb1 {[%clk 0:00:02]}  Nd2 {[%clk 0:00:05]} 42. Rd1 {[%clk 0:00:01]}  Ne4 {[%clk 0:00:04]} 43. Rb1 {[%clk 0:00:01]}  Qc2 {[%clk 0:00:05]} 44. a4 {[%clk 0:00:01]}  Nd2 {[%clk 0:00:05]} 45. Re1 {[%clk 0:00:01]}  Nxb3+ {[%clk 0:00:05]} 46. Ka2 {[%clk 0:00:02]}  Nd2 {[%clk 0:00:06]} 47. Rc1 {[%clk 0:00:02]}  Qf5 {[%clk 0:00:02]} 48. Rxc6+ {[%clk 0:00:02]}  bxc6 {[%clk 0:00:03]} 49. Qa5+ {[%clk 0:00:03]}  Kb7 {[%clk 0:00:03]} 50. Qxd2 {[%clk 0:00:04]}  Qf1 {[%clk 0:00:02]} 51. Qb4+ {[%clk 0:00:04]}  Ka6 {[%clk 0:00:02]} 52. Qc5 {[%clk 0:00:03]}  Qc4+ {[%clk 0:00:02]} 53. Qxc4+ {[%clk 0:00:03]}  dxc4 {[%clk 0:00:03]} 54. Ka3 {[%clk 0:00:03]}  g5 {[%clk 0:00:02]} 55. Bc1 {[%clk 0:00:04]}  g4 {[%clk 0:00:01]} 56. Bxh6 {[%clk 0:00:03]}  g3 {[%clk 0:00:01]} 57. Be3 {[%clk 0:00:04]}  g2 {[%clk 0:00:01]} 58. Kb4 {[%clk 0:00:04]}  c3 {[%clk 0:00:01]} 59. Kxc3 {[%clk 0:00:04]}  Ka5 {[%clk 0:00:02]} 60. Kc4 {[%clk 0:00:05]}  g1=Q {[%clk 0:00:03]} 61. Bxg1 {[%clk 0:00:05]} 1-0


[Site "https://www.chess.com"]

[Event "Titled Tuesday Blitz February 07 Late 2023"]
[White "EREBUNI91"]
[Black "Vasquez Schroeder, Rodrigo"]
[BlackFideId "3400042"]
[WhiteElo "2759"]
[BlackElo "2524"]
[Result "1-0"]
[Round "06"]
[TimeControl "180+2"]
[Date "2023.02.07"]
[WhiteClock "0:00:07"]
[BlackClock "0:00:12"]

1. e4 {[%clk 0:03:00]}  c5 {[%clk 0:02:58]} 2. Nc3 {[%clk 0:02:59]}  a6 {[%clk 0:02:57]} 3. g3 {[%clk 0:02:54]}  b5 {[%clk 0:02:56]} 4. Bg2 {[%clk 0:02:54]}  Bb7 {[%clk 0:02:56]} 5. Nge2 {[%clk 0:02:51]}  g6 {[%clk 0:02:43]} 6. d4 {[%clk 0:02:47]}  cxd4 {[%clk 0:02:42]} 7. Nxd4 {[%clk 0:02:42]}  Bg7 {[%clk 0:02:41]} 8. O-O {[%clk 0:02:39]}  Nc6 {[%clk 0:02:40]} 9. Nb3 {[%clk 0:02:32]}  d6 {[%clk 0:02:39]} 10. a4 {[%clk 0:02:29]}  b4 {[%clk 0:02:36]} 11. Nd5 {[%clk 0:02:26]}  Nf6 {[%clk 0:02:23]} 12. a5 {[%clk 0:02:25]}  O-O {[%clk 0:02:17]} 13. Be3 {[%clk 0:02:20]}  Nd7 {[%clk 0:02:14]} 14. Qc1 {[%clk 0:02:14]}  e6 {[%clk 0:02:13]} 15. Nb6 {[%clk 0:02:12]}  Nxb6 {[%clk 0:02:13]} 16. Bxb6 {[%clk 0:02:10]}  Qe7 {[%clk 0:02:13]} 17. Rd1 {[%clk 0:02:02]}  Rac8 {[%clk 0:02:11]} 18. Qd2 {[%clk 0:01:50]}  Ne5 {[%clk 0:01:44]} 19. Qxb4 {[%clk 0:01:42]}  Rxc2 {[%clk 0:01:20]} 20. Rac1 {[%clk 0:01:41]}  Rxc1 {[%clk 0:01:16]} 21. Nxc1 {[%clk 0:01:39]}  Rc8 {[%clk 0:01:15]} 22. Nd3 {[%clk 0:01:30]}  Nxd3 {[%clk 0:01:06]} 23. Rxd3 {[%clk 0:01:31]}  Rc1+ {[%clk 0:01:05]} 24. Bf1 {[%clk 0:01:30]}  Bc6 {[%clk 0:00:47]} 25. Qd2 {[%clk 0:01:22]}  Ra1 {[%clk 0:00:40]} 26. Ra3 {[%clk 0:01:17]}  Rb1 {[%clk 0:00:27]} 27. Qc2 {[%clk 0:01:08]}  Rxf1+ {[%clk 0:00:23]} 28. Kxf1 {[%clk 0:01:08]}  Qb7 {[%clk 0:00:23]} 29. f3 {[%clk 0:01:06]}  f5 {[%clk 0:00:23]} 30. Re3 {[%clk 0:00:57]}  fxe4 {[%clk 0:00:22]} 31. fxe4 {[%clk 0:00:57]}  Bh6 {[%clk 0:00:20]} 32. Re1 {[%clk 0:00:53]}  d5 {[%clk 0:00:20]} 33. exd5 {[%clk 0:00:49]}  Bb5+ {[%clk 0:00:21]} 34. Kg1 {[%clk 0:00:45]}  Qxd5 {[%clk 0:00:21]} 35. Qe4 {[%clk 0:00:39]}  Qxe4 {[%clk 0:00:16]} 36. Rxe4 {[%clk 0:00:40]}  Kf7 {[%clk 0:00:16]} 37. Rb4 {[%clk 0:00:36]}  Bd3 {[%clk 0:00:15]} 38. Kf2 {[%clk 0:00:33]}  e5 {[%clk 0:00:16]} 39. Be3 {[%clk 0:00:31]}  Bf8 {[%clk 0:00:16]} 40. Rb7+ {[%clk 0:00:28]}  Ke6 {[%clk 0:00:16]} 41. Rxh7 {[%clk 0:00:25]}  Bb4 {[%clk 0:00:15]} 42. Bb6 {[%clk 0:00:22]}  e4 {[%clk 0:00:14]} 43. Rc7 {[%clk 0:00:17]}  Bd2 {[%clk 0:00:12]} 44. Rc8 {[%clk 0:00:12]}  Kd5 {[%clk 0:00:12]} 45. Be3 {[%clk 0:00:08]}  Bxa5 {[%clk 0:00:12]} 46. Rc5+ {[%clk 0:00:07]} 1-0


[Site "https://www.chess.com"]

[Event "Titled Tuesday Blitz February 07 Late 2023"]
[White "Korchmar, Vasiliy"]
[Black "Halkias, Stelios"]
[WhiteFideId "24131750"]
[BlackFideId "4201809"]
[WhiteElo "2438"]
[BlackElo "2511"]
[Result "1-0"]
[Round "06"]
[TimeControl "180+2"]
[Date "2023.02.07"]
[WhiteClock "0:00:08"]
[BlackClock "0:00:08"]

1. e4 {[%clk 0:03:00]}  c5 {[%clk 0:02:59]} 2. Nf3 {[%clk 0:02:59]}  d6 {[%clk 0:02:59]} 3. d4 {[%clk 0:02:59]}  cxd4 {[%clk 0:02:59]} 4. Nxd4 {[%clk 0:03:00]}  Nf6 {[%clk 0:03:00]} 5. Nc3 {[%clk 0:02:58]}  a6 {[%clk 0:03:00]} 6. Be2 {[%clk 0:02:56]}  e5 {[%clk 0:03:00]} 7. Nb3 {[%clk 0:02:55]}  Be6 {[%clk 0:03:00]} 8. O-O {[%clk 0:02:54]}  Nbd7 {[%clk 0:02:58]} 9. Be3 {[%clk 0:02:49]}  Be7 {[%clk 0:02:58]} 10. Qd3 {[%clk 0:02:49]}  Rc8 {[%clk 0:02:57]} 11. Nd5 {[%clk 0:02:47]}  Bxd5 {[%clk 0:02:52]} 12. exd5 {[%clk 0:02:48]}  Nb6 {[%clk 0:02:52]} 13. Bxb6 {[%clk 0:02:09]}  Qxb6 {[%clk 0:02:50]} 14. a4 {[%clk 0:02:03]}  O-O {[%clk 0:02:40]} 15. a5 {[%clk 0:02:03]}  Qc7 {[%clk 0:02:15]} 16. c4 {[%clk 0:02:01]}  g6 {[%clk 0:02:12]} 17. Nd2 {[%clk 0:01:46]}  Nd7 {[%clk 0:02:09]} 18. b4 {[%clk 0:01:45]}  f5 {[%clk 0:02:09]} 19. f3 {[%clk 0:01:39]}  Bg5 {[%clk 0:01:56]} 20. Nb3 {[%clk 0:01:38]}  Rfe8 {[%clk 0:01:51]} 21. Kh1 {[%clk 0:01:38]}  Qd8 {[%clk 0:01:37]} 22. Ra2 {[%clk 0:01:34]}  Qe7 {[%clk 0:01:23]} 23. Rc2 {[%clk 0:01:33]}  Nf6 {[%clk 0:00:59]} 24. c5 {[%clk 0:01:27]}  e4 {[%clk 0:00:56]} 25. fxe4 {[%clk 0:01:21]}  Nxe4 {[%clk 0:00:56]} 26. c6 {[%clk 0:01:09]}  Bf6 {[%clk 0:00:49]} 27. cxb7 {[%clk 0:00:37]}  Qxb7 {[%clk 0:00:41]} 28. Rxc8 {[%clk 0:00:35]}  Rxc8 {[%clk 0:00:21]} 29. Qxa6 {[%clk 0:00:36]}  Qxa6 {[%clk 0:00:20]} 30. Bxa6 {[%clk 0:00:37]}  Rc3 {[%clk 0:00:20]} 31. Rb1 {[%clk 0:00:30]}  Bg5 {[%clk 0:00:19]} 32. Bb7 {[%clk 0:00:10]}  Be3 {[%clk 0:00:17]} 33. h3 {[%clk 0:00:11]}  Ng3+ {[%clk 0:00:08]} 34. Kh2 {[%clk 0:00:11]}  Bf4 {[%clk 0:00:08]} 35. a6 {[%clk 0:00:08]}  Ne2+ {[%clk 0:00:07]} 36. Kh1 {[%clk 0:00:08]}  Ng3+ {[%clk 0:00:08]} 37. Kg1 {[%clk 0:00:08]}  Rc2 {[%clk 0:00:05]} 38. Nd4 {[%clk 0:00:03]}  Be3+ {[%clk 0:00:05]} 39. Kh2 {[%clk 0:00:03]}  Bxd4 {[%clk 0:00:03]} 40. Kxg3 {[%clk 0:00:04]}  Ra2 {[%clk 0:00:04]} 41. b5 {[%clk 0:00:03]}  g5 {[%clk 0:00:03]} 42. b6 {[%clk 0:00:03]}  h5 {[%clk 0:00:03]} 43. a7 {[%clk 0:00:03]}  h4+ {[%clk 0:00:02]} 44. Kh2 {[%clk 0:00:03]}  g4 {[%clk 0:00:02]} 45. hxg4 {[%clk 0:00:04]}  fxg4 {[%clk 0:00:02]} 46. a8=Q+ {[%clk 0:00:04]}  Rxa8 {[%clk 0:00:01]} 47. Bxa8 {[%clk 0:00:05]}  Be5+ {[%clk 0:00:02]} 48. Kh1 {[%clk 0:00:05]}  h3 {[%clk 0:00:03]} 49. gxh3 {[%clk 0:00:06]}  Bd4 {[%clk 0:00:04]} 50. hxg4 {[%clk 0:00:05]}  Bxb6 {[%clk 0:00:03]} 51. Rxb6 {[%clk 0:00:05]}  Kf7 {[%clk 0:00:04]} 52. Rxd6 {[%clk 0:00:06]}  Ke7 {[%clk 0:00:05]} 53. Re6+ {[%clk 0:00:06]}  Kf7 {[%clk 0:00:06]} 54. g5 {[%clk 0:00:06]}  Kg7 {[%clk 0:00:07]} 55. Kg2 {[%clk 0:00:07]}  Kf7 {[%clk 0:00:08]} 56. Kf3 {[%clk 0:00:08]} 1-0


[Site "https://www.chess.com"]

[Event "Titled Tuesday Blitz February 07 Late 2023"]
[White "Oganian, Miran"]
[Black "Haydon, David L"]
[WhiteFideId "4122488"]
[BlackFideId "415405"]
[WhiteElo "2439"]
[BlackElo "2253"]
[Result "1-0"]
[Round "06"]
[TimeControl "180+2"]
[Date "2023.02.07"]
[WhiteClock "0:01:46"]
[BlackClock "0:00:15"]

1. e4 {[%clk 0:02:59]}  d5 {[%clk 0:02:59]} 2. exd5 {[%clk 0:02:58]}  Qxd5 {[%clk 0:01:28]} 3. d4 {[%clk 0:02:56]}  Qd8 {[%clk 0:01:28]} 4. Nf3 {[%clk 0:02:52]}  Nf6 {[%clk 0:01:29]} 5. h3 {[%clk 0:02:51]}  g6 {[%clk 0:01:29]} 6. Be2 {[%clk 0:02:51]}  Bg7 {[%clk 0:01:29]} 7. O-O {[%clk 0:02:51]}  O-O {[%clk 0:01:30]} 8. c4 {[%clk 0:02:51]}  b6 {[%clk 0:01:30]} 9. Nc3 {[%clk 0:02:51]}  Bb7 {[%clk 0:01:31]} 10. Be3 {[%clk 0:02:52]}  Nbd7 {[%clk 0:01:31]} 11. Qc2 {[%clk 0:02:48]}  e6 {[%clk 0:01:31]} 12. Rad1 {[%clk 0:02:48]}  Qe7 {[%clk 0:01:31]} 13. Rfe1 {[%clk 0:02:46]}  Rfd8 {[%clk 0:01:31]} 14. Bf4 {[%clk 0:02:42]}  Nb8 {[%clk 0:01:20]} 15. Ne5 {[%clk 0:02:41]}  Na6 {[%clk 0:01:12]} 16. Bf3 {[%clk 0:02:39]}  Bxf3 {[%clk 0:01:08]} 17. Nxf3 {[%clk 0:02:40]}  Qb4 {[%clk 0:01:01]} 18. Ne5 {[%clk 0:02:39]}  Rdc8 {[%clk 0:00:53]} 19. b3 {[%clk 0:02:36]}  c6 {[%clk 0:00:49]} 20. Re3 {[%clk 0:02:31]}  Nh5 {[%clk 0:00:43]} 21. Bh2 {[%clk 0:02:29]}  Qe7 {[%clk 0:00:39]} 22. Rde1 {[%clk 0:02:21]}  Qd8 {[%clk 0:00:36]} 23. Nf3 {[%clk 0:02:17]}  Nb4 {[%clk 0:00:32]} 24. Qe2 {[%clk 0:02:16]}  Nf6 {[%clk 0:00:23]} 25. a3 {[%clk 0:02:11]}  Na6 {[%clk 0:00:23]} 26. b4 {[%clk 0:02:10]}  Nc7 {[%clk 0:00:20]} 27. Be5 {[%clk 0:02:06]}  a5 {[%clk 0:00:18]} 28. Ng5 {[%clk 0:02:02]}  axb4 {[%clk 0:00:16]} 29. axb4 {[%clk 0:02:03]}  Nd7 {[%clk 0:00:13]} 30. Bxg7 {[%clk 0:02:02]}  Kxg7 {[%clk 0:00:13]} 31. Nge4 {[%clk 0:02:02]}  Nf6 {[%clk 0:00:08]} 32. Rf3 {[%clk 0:02:01]}  Nxe4 {[%clk 0:00:08]} 33. Nxe4 {[%clk 0:02:02]}  Qxd4 {[%clk 0:00:09]} 34. Ng5 {[%clk 0:02:00]}  Rf8 {[%clk 0:00:06]} 35. Rd1 {[%clk 0:02:00]}  Ra1 {[%clk 0:00:06]} 36. Rxa1 {[%clk 0:01:58]}  Qxa1+ {[%clk 0:00:07]} 37. Kh2 {[%clk 0:01:59]}  Qd4 {[%clk 0:00:06]} 38. Ne4 {[%clk 0:01:53]}  Qe5+ {[%clk 0:00:06]} 39. Ng3 {[%clk 0:01:47]}  Qxe2 {[%clk 0:00:06]} 40. Nxe2 {[%clk 0:01:48]}  f5 {[%clk 0:00:07]} 41. Nd4 {[%clk 0:01:48]}  Kf6 {[%clk 0:00:07]} 42. Nxc6 {[%clk 0:01:48]}  e5 {[%clk 0:00:08]} 43. Rd3 {[%clk 0:01:48]}  e4 {[%clk 0:00:09]} 44. Rd6+ {[%clk 0:01:47]}  Ne6 {[%clk 0:00:08]} 45. Nd4 {[%clk 0:01:47]}  Re8 {[%clk 0:00:09]} 46. Rxb6 {[%clk 0:01:43]}  Ke5 {[%clk 0:00:09]} 47. Rxe6+ {[%clk 0:01:43]}  Rxe6 {[%clk 0:00:10]} 48. Nxe6 {[%clk 0:01:44]}  f4 {[%clk 0:00:10]} 49. Nxf4 {[%clk 0:01:43]}  Kxf4 {[%clk 0:00:11]} 50. b5 {[%clk 0:01:43]}  e3 {[%clk 0:00:12]} 51. fxe3+ {[%clk 0:01:43]}  Kxe3 {[%clk 0:00:13]} 52. b6 {[%clk 0:01:44]}  Kf2 {[%clk 0:00:13]} 53. b7 {[%clk 0:01:45]}  g5 {[%clk 0:00:14]} 54. b8=Q {[%clk 0:01:46]}  g4 {[%clk 0:00:15]} 55. Qf4+ {[%clk 0:01:46]} 1-0


[Site "https://www.chess.com"]